[Event "FIDE Women World Blitz 2021"]
[Site "Warsaw"]
[Date "2021.12.29"]
[Round "6.19"]
[White "Muetsch, Annmarie"]
[Black "Bivol, Alina"]
[Result "0-1"]
[ECO "A04"]
[WhiteElo "2279"]
[BlackElo "2377"]
[Annotator "NA"]
[PlyCount "102"]
[EventDate "2021.12.29"]
[EventType "swiss"]
[EventCountry "POL"]
[Tiebreak "Cut1 Buchholz"]
[SourceTitle "playchess.com"]
[Source "ChessBase"]
[SourceQuality "1"]
[TimeControl "180+2"]

1. e4 {[%emt 0:00:01]} e6 {[%emt 0:00:01]} 2. d3 {[%emt 0:00:02]} c5 {[%emt 0:
00:01]} 3. Nd2 {[%emt 0:00:03]} Nc6 {[%emt 0:00:01]} 4. Ngf3 {[%emt 0:00:02]}
g6 {[%emt 0:00:04]} 5. g3 {[%emt 0:00:01]} Bg7 {[%emt 0:00:01]} 6. Bg2 {
[%emt 0:00:01]} Nge7 {[%emt 0:00:06]} 7. O-O {[%emt 0:00:05]} O-O {[%emt 0:00:
02]} 8. c3 {[%emt 0:00:03]} e5 {[%emt 0:00:02]} 9. Qe2 {[%emt 0:00:10]} d6 {
[%emt 0:00:12]} 10. a4 {[%emt 0:00:05]} a6 {[%emt 0:00:01]} 11. Nc4 {[%emt 0:
00:02]} b6 {[%emt 0:00:06]} 12. Bg5 {[%emt 0:00:06]} Rb8 {[%emt 0:00:26]} 13.
Qd2 {[%emt 0:00:19]} b5 {[%emt 0:00:02]} 14. axb5 {[%emt 0:00:02]} axb5 {
[%emt 0:00:02]} 15. Na3 {[%emt 0:00:02]} f5 {[%emt 0:00:09]} 16. exf5 {[%emt 0:
00:07]} Bxf5 {[%emt 0:00:18]} 17. Nh4 {[%emt 0:00:05]} Qc7 {[%emt 0:00:18]} 18.
Nxf5 {[%emt 0:00:17]} Rxf5 {[%emt 0:00:02]} 19. Bh3 {[%emt 0:00:06]} Rff8 {
[%emt 0:00:00]} 20. Be6+ {[%emt 0:00:14]} Kh8 {[%emt 0:00:01]} 21. Nc2 {
[%emt 0:00:01]} d5 {[%emt 0:00:03]} 22. Ra6 {[%emt 0:00:07]} d4 {[%emt 0:00:10]
} 23. cxd4 {[%emt 0:00:20]} cxd4 {[%emt 0:00:15]} 24. Nb4 {[%emt 0:00:04]} Nxb4
{[%emt 0:00:18]} 25. Qxb4 {[%emt 0:00:01]} Nf5 {[%emt 0:00:02]} 26. Rc1 {
[%emt 0:00:10]} Qb7 {[%emt 0:00:01]} 27. Rac6 {[%emt 0:00:07]} h6 {[%emt 0:00:
10]} 28. Bd2 {[%emt 0:00:05]} Qa8 {[%emt 0:00:19]} 29. Bd5 {[%emt 0:00:04]} Qa4
{[%emt 0:00:06]} 30. Qc5 {[%emt 0:00:06]} b4 {[%emt 0:00:04]} 31. Bc4 {[%emt 0:
00:18]} b3 {[%emt 0:00:11]} 32. Ra6 {[%emt 0:00:05]} Qe8 {[%emt 0:00:04]} 33.
Ra7 {[%emt 0:00:04]} Qc8 {[%emt 0:00:07]} 34. Qd5 {[%emt 0:00:05]} Qd8 {
[%emt 0:00:06]} 35. Rd7 {[%emt 0:00:06]} Qb6 {[%emt 0:00:00]} 36. Ba5 {[%emt 0:
00:04]} Qf6 {[%emt 0:00:04]} 37. Rf1 {[%emt 0:00:10]} h5 {[%emt 0:00:07]} 38.
Qc5 {[%emt 0:00:07]} Nh6 {[%emt 0:00:02]} 39. Bd2 {[%emt 0:00:05]} Ng4 {
[%emt 0:00:02]} 40. Be1 {[%emt 0:00:07]} Ne3 {[%emt 0:00:02]} 41. Rd6 {[%emt 0:
00:04]} Qf3 {[%emt 0:00:04]} 42. Bd5 {[%emt 0:00:02]} Qe2 {[%emt 0:00:04]} 43.
Bg2 {[%emt 0:00:04]} Nxf1 {[%emt 0:00:01]} 44. Bxf1 {[%emt 0:00:03]} Qxe1 {
[%emt 0:00:01]} 45. f4 {[%emt 0:00:04]} exf4 {[%emt 0:00:03]} 46. Rxg6 {
[%emt 0:00:03]} Qe3+ {[%emt 0:00:06]} 47. Kg2 {[%emt 0:00:02]} Qe5 {[%emt 0:00:
02]} 48. Qc6 {[%emt 0:00:04]} f3+ {[%emt 0:00:02]} 49. Kh3 {[%emt 0:00:01]}
Qf5+ {[%emt 0:00:02]} 50. g4 {[%emt 0:00:01]} hxg4+ {[%emt 0:00:02]} 51. Rxg4 {
[%emt 0:00:03]} Rf6 {[%emt 0:00:01]} 0-1

[Event "FIDE Women World Blitz 2021"]
[Site "Warsaw"]
[Date "2021.12.29"]
[Round "6.20"]
[White "Gaboyan, Susanna"]
[Black "Danielian, Elina"]
[Result "1-0"]
[ECO "A07"]
[WhiteElo "2253"]
[BlackElo "2450"]
[Annotator "ChessBase"]
[PlyCount "86"]
[EventDate "2021.12.29"]
[EventType "swiss"]
[EventCountry "POL"]
[Tiebreak "Cut1 Buchholz"]
[SourceTitle "playchess.com"]
[Source "ChessBase"]
[SourceQuality "1"]
[TimeControl "180+2"]

1. Nf3 {[%emt 0:00:01]} d5 {[%emt 0:00:01]} 2. g3 {[%emt 0:00:01]} c6 {[%emt 0:
00:01]} 3. Bg2 {[%emt 0:00:02]} Bg4 {[%emt 0:00:01]} 4. O-O {[%emt 0:00:02]}
Nd7 {[%emt 0:00:00]} 5. d3 {[%emt 0:00:02]} e5 {[%emt 0:00:03]} 6. Nbd2 {
[%emt 0:00:02]} Ngf6 {[%emt 0:00:01]} 7. e4 {[%emt 0:00:03]} dxe4 {[%emt 0:00:
03]} 8. dxe4 {[%emt 0:00:02]} Bc5 {[%emt 0:00:02]} 9. Qe2 {[%emt 0:00:07]} O-O
{[%emt 0:00:07]} 10. Nc4 {[%emt 0:00:12]} Qc7 {[%emt 0:00:04]} 11. a4 {[%emt 0:
00:22]} Rfe8 {[%emt 0:00:24]} 12. c3 {[%emt 0:00:05]} a5 {[%emt 0:00:01]} 13.
h3 {[%emt 0:00:08]} Bh5 {[%emt 0:00:02]} 14. Bd2 {[%emt 0:00:50]} Bf8 {[%emt 0:
00:23]} 15. b4 {[%emt 0:00:12]} axb4 {[%emt 0:00:16]} 16. cxb4 {[%emt 0:00:01]}
Nb6 {[%emt 0:00:39]} 17. Rfc1 {[%emt 0:00:07]} Rxa4 {[%emt 0:00:29]} 18. Bc3 {
[%emt 0:00:53]} Rxa1 {[%emt 0:00:07]} 19. Rxa1 {[%emt 0:00:00]} Nxc4 {[%emt 0:
00:26]} 20. Qxc4 {[%emt 0:00:02]} b5 {[%emt 0:00:03]} 21. Qb3 {[%emt 0:00:16]}
Nxe4 {[%emt 0:00:11]} 22. Bxe5 {[%emt 0:00:01]} Rxe5 {[%emt 0:00:07]} 23. Nxe5
Qxe5 {[%emt 0:00:01]} 24. Re1 {[%emt 0:00:03]} Nd2 {[%emt 0:00:07]} 25. Rxe5 {
[%emt 0:00:02]} Nxb3 {[%emt 0:00:01]} 26. Rxh5 {[%emt 0:00:02]} Bxb4 {[%emt 0:
00:03]} 27. Bxc6 {[%emt 0:00:02]} g6 {[%emt 0:00:04]} 28. Rxb5 {[%emt 0:00:02]}
Nd4 {[%emt 0:00:01]} 29. Rxb4 {[%emt 0:00:04]} Nxc6 {[%emt 0:00:00]} 30. Rb5 {
[%emt 0:00:02]} h5 {[%emt 0:00:02]} 31. Kg2 {[%emt 0:00:02]} Kg7 {[%emt 0:00:
01]} 32. Rb6 {[%emt 0:00:02]} Nd4 {[%emt 0:00:01]} 33. Ra6 {[%emt 0:00:02]} Nf5
{[%emt 0:00:01]} 34. Kf3 {[%emt 0:00:02]} Nd4+ {[%emt 0:00:01]} 35. Ke4 {
[%emt 0:00:02]} Nf5 {[%emt 0:00:02]} 36. Ke5 {[%emt 0:00:02]} Ne7 {[%emt 0:00:
06]} 37. g4 {[%emt 0:00:03]} hxg4 {[%emt 0:00:01]} 38. hxg4 {[%emt 0:00:01]}
Ng8 {[%emt 0:00:04]} 39. Ra7 {[%emt 0:00:06]} Nh6 {[%emt 0:00:03]} 40. f3 {
[%emt 0:00:02]} Kf8 {[%emt 0:00:08]} 41. Kf6 {[%emt 0:00:05]} Ng8+ {[%emt 0:00:
01]} 42. Kg5 {[%emt 0:00:01]} Ne7 {[%emt 0:00:04]} 43. Kf6 {[%emt 0:00:04]}
Nd5+ {[%emt 0:00:03]} 1-0

[Event "FIDE Women World Blitz 2021"]
[Site "Warsaw"]
[Date "2021.12.29"]
[Round "6.21"]
[White "Balajayeva, Khanim"]
[Black "Pourkashiyan, Atousa"]
[Result "1-0"]
[ECO "B22"]
[WhiteElo "2369"]
[BlackElo "2322"]
[Annotator "NA"]
[PlyCount "65"]
[EventDate "2021.12.29"]
[EventType "swiss"]
[EventCountry "POL"]
[Tiebreak "Cut1 Buchholz"]
[SourceTitle "playchess.com"]
[Source "ChessBase"]
[SourceQuality "1"]
[TimeControl "180+2"]

1. e4 {[%emt 0:00:00]} c5 {[%emt 0:00:01]} 2. c3 {[%emt 0:00:01]} Nf6 {[%emt 0:
00:01]} 3. e5 {[%emt 0:00:01]} Nd5 {[%emt 0:00:01]} 4. Nf3 {[%emt 0:00:01]} e6
{[%emt 0:00:01]} 5. d4 {[%emt 0:00:01]} cxd4 {[%emt 0:00:01]} 6. cxd4 {[%emt 0:
00:01]} d6 {[%emt 0:00:01]} 7. Bc4 {[%emt 0:00:01]} Nc6 {[%emt 0:00:05]} 8. O-O
{[%emt 0:00:03]} Be7 {[%emt 0:00:01]} 9. Qe2 {[%emt 0:00:01]} O-O {[%emt 0:00:
06]} 10. Rd1 {[%emt 0:00:01]} a6 {[%emt 0:00:31]} 11. Bd2 {[%emt 0:00:06]} Bd7
{[%emt 0:00:18]} 12. Nc3 {[%emt 0:00:01]} Nxc3 {[%emt 0:00:07]} 13. Bxc3 {
[%emt 0:00:02]} Rc8 {[%emt 0:00:08]} 14. exd6 {[%emt 0:00:08]} Bxd6 {[%emt 0:
00:03]} 15. d5 {[%emt 0:00:04]} exd5 {[%emt 0:00:25]} 16. Rxd5 {[%emt 0:00:19]}
Bb4 {[%emt 0:00:42]} 17. Rad1 {[%emt 0:00:37]} Rc7 {[%emt 0:00:02]} 18. Be5 {
[%emt 0:00:26]} Nxe5 {[%emt 0:00:33]} 19. Nxe5 {[%emt 0:00:02]} Qh4 {[%emt 0:
00:18]} 20. Rxd7 {[%emt 0:00:08]} Rxd7 {[%emt 0:00:02]} 21. Rxd7 {[%emt 0:00:
05]} Qf4 {[%emt 0:00:02]} 22. g3 {[%emt 0:00:08]} Qc1+ {[%emt 0:00:02]} 23. Kg2
{[%emt 0:00:01]} b5 {[%emt 0:00:01]} 24. Bxf7+ {[%emt 0:00:15]} Kh8 {[%emt 0:
00:01]} 25. Bb3 {[%emt 0:00:06]} Qc5 {[%emt 0:00:11]} 26. Nf7+ {[%emt 0:00:22]}
Kg8 {[%emt 0:00:00]} 27. Qe6 {[%emt 0:00:10]} h6 {[%emt 0:00:06]} 28. Nxh6+ {
[%emt 0:00:09]} Kh7 {[%emt 0:00:01]} 29. Nf7 {[%emt 0:00:03]} a5 {[%emt 0:00:
03]} 30. Qh3+ {[%emt 0:00:02]} Kg6 {[%emt 0:00:02]} 31. Qg4+ {[%emt 0:00:06]}
Kf6 {[%emt 0:00:03]} 32. Rd6+ {[%emt 0:00:05]} Ke7 {[%emt 0:00:02]} 33. Qe6# {
[%emt 0:00:01]} 1-0

[Event "FIDE Women World Blitz 2021"]
[Site "Warsaw"]
[Date "2021.12.29"]
[Round "6.22"]
[White "Majdan, Joanna"]
[Black "Serikbay, Assel"]
[Result "1/2-1/2"]
[ECO "B49"]
[WhiteElo "2325"]
[BlackElo "2237"]
[Annotator "NA"]
[PlyCount "114"]
[EventDate "2021.12.29"]
[EventType "swiss"]
[EventCountry "POL"]
[Tiebreak "Cut1 Buchholz"]
[SourceTitle "playchess.com"]
[Source "ChessBase"]
[SourceQuality "1"]
[TimeControl "180+2"]

1. e4 {[%emt 0:00:01]} c5 {[%emt 0:00:01]} 2. Nc3 {[%emt 0:00:01]} e6 {[%emt 0:
00:01]} 3. Nf3 {[%emt 0:00:02]} Nc6 {[%emt 0:00:02]} 4. d4 {[%emt 0:00:02]}
cxd4 {[%emt 0:00:01]} 5. Nxd4 {[%emt 0:00:00]} a6 {[%emt 0:00:01]} 6. Be2 {
[%emt 0:00:05]} Nf6 {[%emt 0:00:01]} 7. O-O {[%emt 0:00:03]} Qc7 {[%emt 0:00:
07]} 8. Be3 {[%emt 0:00:01]} b5 {[%emt 0:00:09]} 9. Nxc6 {[%emt 0:00:08]} dxc6
{[%emt 0:00:05]} 10. f4 {[%emt 0:00:12]} Be7 {[%emt 0:00:15]} 11. Bf3 {[%emt 0:
00:05]} O-O {[%emt 0:00:04]} 12. Qe2 {[%emt 0:00:06]} Bb7 {[%emt 0:00:04]} 13.
g4 {[%emt 0:00:07]} c5 {[%emt 0:00:03]} 14. g5 {[%emt 0:00:09]} Ne8 {[%emt 0:
00:09]} 15. f5 {[%emt 0:00:14]} exf5 {[%emt 0:00:03]} 16. exf5 {[%emt 0:00:04]}
Bd6 {[%emt 0:00:16]} 17. Nd5 {[%emt 0:00:09]} Bxd5 {[%emt 0:00:22]} 18. Bxd5 {
[%emt 0:00:02]} Rd8 {[%emt 0:00:01]} 19. Rad1 {[%emt 0:00:16]} Qe7 {[%emt 0:00:
21]} 20. g6 {[%emt 0:00:15]} Nf6 {[%emt 0:00:01]} 21. Bxf7+ {[%emt 0:00:04]}
Kh8 {[%emt 0:00:01]} 22. Qf3 {[%emt 0:00:43]} c4 {[%emt 0:00:04]} 23. Bf4 {
[%emt 0:00:06]} Bc5+ {[%emt 0:00:01]} 24. Kg2 {[%emt 0:00:03]} Bd6 {[%emt 0:00:
51]} 25. Bxd6 {[%emt 0:00:03]} Rxd6 {[%emt 0:00:01]} 26. Rxd6 {[%emt 0:00:02]}
Qxd6 {[%emt 0:00:01]} 27. Rd1 {[%emt 0:00:02]} Qe5 {[%emt 0:00:03]} 28. c3 {
[%emt 0:00:05]} b4 {[%emt 0:00:17]} 29. Rd2 {[%emt 0:00:01]} bxc3 {[%emt 0:00:
04]} 30. bxc3 {[%emt 0:00:03]} Qe4 {[%emt 0:00:14]} 31. Qxe4 {[%emt 0:00:05]}
Nxe4 {[%emt 0:00:01]} 32. Rd4 {[%emt 0:00:02]} Nxc3 {[%emt 0:00:14]} 33. Rxc4 {
[%emt 0:00:03]} Nb5 {[%emt 0:00:03]} 34. Rh4 {[%emt 0:00:06]} h6 {[%emt 0:00:
01]} 35. Ra4 {[%emt 0:00:10]} Nd6 {[%emt 0:00:01]} 36. Rxa6 {[%emt 0:00:01]}
Nxf7 {[%emt 0:00:01]} 37. gxf7 {[%emt 0:00:02]} Rxf7 {[%emt 0:00:01]} 38. Kg3 {
[%emt 0:00:04]} Rxf5 {[%emt 0:00:00]} 39. a4 {[%emt 0:00:01]} Rf1 {[%emt 0:00:
02]} 40. Rb6 {[%emt 0:00:02]} Ra1 {[%emt 0:00:02]} 41. Rb4 {[%emt 0:00:01]} Kh7
{[%emt 0:00:02]} 42. h4 {[%emt 0:00:03]} h5 {[%emt 0:00:06]} 43. Kf4 {[%emt 0:
00:04]} Kh6 {[%emt 0:00:01]} 44. Rb6+ {[%emt 0:00:02]} g6 {[%emt 0:00:01]} 45.
Rb4 {[%emt 0:00:03]} Rf1+ {[%emt 0:00:04]} 46. Ke5 {[%emt 0:00:05]} Rf5+ {
[%emt 0:00:02]} 47. Kd6 {[%emt 0:00:02]} g5 {[%emt 0:00:02]} 48. hxg5+ Kxg5 {
[%emt 0:00:01]} 49. Kc6 {[%emt 0:00:14]} h4 {[%emt 0:00:02]} 50. Kb6 {[%emt 0:
00:03]} h3 {[%emt 0:00:01]} 51. a5 {[%emt 0:00:03]} h2 {[%emt 0:00:02]} 52. Rb1
{[%emt 0:00:00]} Kg4 {[%emt 0:00:03]} 53. a6 {[%emt 0:00:04]} Kg3 {[%emt 0:00:
02]} 54. Rh1 {[%emt 0:00:01]} Kg2 {[%emt 0:00:02]} 55. Rxh2+ {[%emt 0:00:01]}
Kxh2 {[%emt 0:00:01]} 56. a7 {[%emt 0:00:01]} Rf8 {[%emt 0:00:01]} 57. Kb7 {
[%emt 0:00:01]} Kg3 {[%emt 0:00:01]} 1/2-1/2

[Event "FIDE Women World Blitz 2021"]
[Site "Warsaw"]
[Date "2021.12.29"]
[Round "6.23"]
[White "Salimova, Nurgyul"]
[Black "Kulon, Klaudia"]
[Result "0-1"]
[ECO "B07"]
[WhiteElo "2353"]
[BlackElo "2328"]
[Annotator "NA"]
[PlyCount "78"]
[EventDate "2021.12.29"]
[EventType "swiss"]
[EventCountry "POL"]
[Tiebreak "Cut1 Buchholz"]
[SourceTitle "playchess.com"]
[Source "ChessBase"]
[SourceQuality "1"]
[TimeControl "180+2"]

1. d4 {[%emt 0:00:01]} Nf6 {[%emt 0:00:00]} 2. Nc3 {[%emt 0:00:01]} g6 {
[%emt 0:00:08]} 3. e4 {[%emt 0:00:06]} d6 {[%emt 0:00:01]} 4. h3 {[%emt 0:00:
20]} Bg7 {[%emt 0:00:01]} 5. Be3 {[%emt 0:00:03]} O-O {[%emt 0:00:04]} 6. Qd2 {
[%emt 0:00:13]} a6 {[%emt 0:00:08]} 7. Bh6 {[%emt 0:00:23]} b5 {[%emt 0:00:04]}
8. Bxg7 {[%emt 0:00:02]} Kxg7 {[%emt 0:00:01]} 9. Bd3 {[%emt 0:00:13]} c5 {
[%emt 0:00:06]} 10. dxc5 {[%emt 0:00:12]} dxc5 {[%emt 0:00:03]} 11. e5 {
[%emt 0:00:01]} Ne8 {[%emt 0:00:17]} 12. Nf3 {[%emt 0:00:09]} Bb7 {[%emt 0:00:
14]} 13. O-O-O {[%emt 0:00:19]} Nc6 {[%emt 0:00:24]} 14. h4 {[%emt 0:00:19]} c4
{[%emt 0:00:32]} 15. h5 {[%emt 0:00:07]} Rh8 {[%emt 0:00:25]} 16. hxg6 {
[%emt 0:00:04]} h6 {[%emt 0:00:03]} 17. gxf7 {[%emt 0:00:10]} cxd3 {[%emt 0:00:
01]} 18. Rxh6 {[%emt 0:00:26]} Rxh6 {[%emt 0:00:11]} 19. Qxh6+ {[%emt 0:00:07]}
Kxh6 {[%emt 0:00:07]} 20. f8=Q+ {[%emt 0:00:03]} Ng7 {[%emt 0:00:05]} 21. Rh1+
{[%emt 0:00:09]} Kg6 {[%emt 0:00:01]} 22. Nh4+ {[%emt 0:00:04]} Kh7 {[%emt 0:
00:02]} 23. Nf5+ {[%emt 0:00:03]} Kg6 {[%emt 0:00:00]} 24. Rh6+ {[%emt 0:00:08]
} Kg5 25. Qxg7+ {[%emt 0:00:03]} Kxf5 {[%emt 0:00:02]} 26. Qf7+ {[%emt 0:00:03]
} Kxe5 {[%emt 0:00:02]} 27. Re6+ {[%emt 0:00:02]} Kd4 {[%emt 0:00:03]} 28. Qf4+
{[%emt 0:00:03]} Kc5 {[%emt 0:00:01]} 29. Qe3+ {[%emt 0:00:01]} Nd4 {[%emt 0:
00:19]} 30. Rxe7 {[%emt 0:00:03]} Kb6 {[%emt 0:00:04]} 31. Re6+ {[%emt 0:00:02]
} Ka7 {[%emt 0:00:02]} 32. Re7 {[%emt 0:00:02]} Rc8 {[%emt 0:00:03]} 33. cxd3 {
[%emt 0:00:03]} Ka8 {[%emt 0:00:01]} 34. Re5 {[%emt 0:00:02]} b4 {[%emt 0:00:
01]} 35. Kb1 {[%emt 0:00:01]} bxc3 {[%emt 0:00:01]} 36. bxc3 {[%emt 0:00:01]}
Qb6+ {[%emt 0:00:02]} 37. Kc1 {[%emt 0:00:01]} Rxc3+ {[%emt 0:00:02]} 38. Kd2 {
[%emt 0:00:01]} Qb2+ {[%emt 0:00:01]} 39. Ke1 {[%emt 0:00:02]} Rc1+ {[%emt 0:
00:02]} 0-1

[Event "FIDE Women World Blitz 2021"]
[Site "Warsaw"]
[Date "2021.12.29"]
[Round "6.24"]
[White "Dzagnidze, Nana"]
[Black "Hryzlova, Sofiia"]
[Result "1-0"]
[ECO "D37"]
[WhiteElo "2524"]
[BlackElo "2097"]
[Annotator "ChessBase"]
[PlyCount "63"]
[EventDate "2021.12.29"]
[EventType "swiss"]
[EventCountry "POL"]
[Tiebreak "Cut1 Buchholz"]
[SourceTitle "playchess.com"]
[Source "ChessBase"]
[SourceQuality "1"]
[TimeControl "180+2"]

1. d4 {[%emt 0:00:01]} Nf6 {[%emt 0:00:01]} 2. c4 {[%emt 0:00:01]} e6 {[%emt 0:
00:01]} 3. Nf3 {[%emt 0:00:01]} d5 {[%emt 0:00:01]} 4. Nc3 {[%emt 0:00:02]} a6
{[%emt 0:00:01]} 5. cxd5 {[%emt 0:00:05]} exd5 {[%emt 0:00:01]} 6. Bg5 {
[%emt 0:00:01]} Be6 {[%emt 0:00:02]} 7. e3 {[%emt 0:00:03]} Bd6 {[%emt 0:00:02]
} 8. Bd3 {[%emt 0:00:02]} Nbd7 {[%emt 0:00:04]} 9. O-O {[%emt 0:00:07]} h6 {
[%emt 0:00:04]} 10. Bh4 {[%emt 0:00:02]} O-O {[%emt 0:00:22]} 11. Qc2 {[%emt 0:
00:05]} c6 {[%emt 0:00:03]} 12. a3 {[%emt 0:00:26]} Qc7 {[%emt 0:00:05]} 13.
Bg3 {[%emt 0:00:04]} Rfe8 {[%emt 0:00:10]} 14. b4 {[%emt 0:00:13]} Bxg3 {
[%emt 0:00:22]} 15. hxg3 {[%emt 0:00:02]} Nb6 {[%emt 0:00:01]} 16. a4 {[%emt 0:
00:31]} Nc8 {[%emt 0:00:02]} 17. a5 {[%emt 0:00:05]} Nd6 {[%emt 0:00:04]} 18.
Ne5 {[%emt 0:00:06]} Nd7 {[%emt 0:00:21]} 19. f4 {[%emt 0:00:02]} Nxe5 {
[%emt 0:00:13]} 20. fxe5 {[%emt 0:00:03]} Nc4 {[%emt 0:00:05]} 21. Bxc4 {
[%emt 0:00:08]} dxc4 {[%emt 0:00:02]} 22. Ne4 {[%emt 0:00:03]} Bd5 {[%emt 0:00:
13]} 23. Nd6 {[%emt 0:00:13]} Re7 {[%emt 0:00:01]} 24. Nxc4 {[%emt 0:00:35]}
Rf8 {[%emt 0:00:07]} 25. Rf4 {[%emt 0:00:05]} Re6 {[%emt 0:00:10]} 26. Nb6 {
[%emt 0:00:08]} Qd8 {[%emt 0:00:20]} 27. Raf1 {[%emt 0:00:02]} Rg6 {[%emt 0:00:
05]} 28. Qxg6 {[%emt 0:00:06]} fxg6 {[%emt 0:00:01]} 29. Rxf8+ {[%emt 0:00:03]}
Qxf8 {[%emt 0:00:02]} 30. Rxf8+ {[%emt 0:00:02]} Kxf8 {[%emt 0:00:01]} 31. Nd7+
{[%emt 0:00:09]} Ke7 {[%emt 0:00:20]} 32. Nc5 {[%emt 0:00:02]} 1-0

[Event "FIDE Women World Blitz 2021"]
[Site "Warsaw"]
[Date "2021.12.29"]
[Round "6.25"]
[White "Garifullina, Leya"]
[Black "Lagno, Kateryna"]
[Result "0-1"]
[ECO "C67"]
[WhiteElo "2416"]
[BlackElo "2550"]
[Annotator "ChessBase"]
[PlyCount "103"]
[EventDate "2021.12.29"]
[EventType "swiss"]
[EventCountry "POL"]
[Tiebreak "Cut1 Buchholz"]
[SourceTitle "playchess.com"]
[Source "ChessBase"]
[SourceQuality "1"]
[TimeControl "180+2"]

1. e4 {[%emt 0:00:02]} e5 {[%emt 0:00:01]} 2. Nf3 {[%emt 0:00:02]} Nc6 {
[%emt 0:00:01]} 3. Bb5 {[%emt 0:00:01]} Nf6 {[%emt 0:00:01]} 4. O-O {[%emt 0:
00:05]} Nxe4 {[%emt 0:00:01]} 5. d4 {[%emt 0:00:02]} Nd6 {[%emt 0:00:01]} 6.
Bxc6 {[%emt 0:00:01]} dxc6 {[%emt 0:00:02]} 7. dxe5 {[%emt 0:00:02]} Nf5 {
[%emt 0:00:01]} 8. Qxd8+ {[%emt 0:00:02]} Kxd8 {[%emt 0:00:01]} 9. Nc3 {
[%emt 0:00:03]} Be7 {[%emt 0:00:02]} 10. h3 {[%emt 0:00:01]} Nh4 {[%emt 0:00:
06]} 11. Nxh4 {[%emt 0:00:07]} Bxh4 {[%emt 0:00:01]} 12. Be3 {[%emt 0:00:03]}
Be7 {[%emt 0:00:11]} 13. Ne2 {[%emt 0:00:07]} Bd7 {[%emt 0:00:11]} 14. g4 {
[%emt 0:00:11]} h5 {[%emt 0:00:03]} 15. f3 {[%emt 0:00:02]} Kc8 {[%emt 0:00:06]
} 16. Rad1 {[%emt 0:00:09]} b6 {[%emt 0:00:03]} 17. Kg2 {[%emt 0:00:05]} a5 {
[%emt 0:00:04]} 18. Nf4 {[%emt 0:00:32]} hxg4 {[%emt 0:00:04]} 19. hxg4 {
[%emt 0:00:02]} Bg5 {[%emt 0:00:08]} 20. Bc1 {[%emt 0:00:11]} Bxf4 {[%emt 0:00:
04]} 21. Bxf4 {[%emt 0:00:02]} Be6 {[%emt 0:00:03]} 22. b3 {[%emt 0:00:06]} a4
{[%emt 0:00:02]} 23. Rh1 {[%emt 0:00:05]} Rxh1 {[%emt 0:00:02]} 24. Kxh1 {
[%emt 0:00:14]} Bd5 {[%emt 0:00:04]} 25. Kg2 {[%emt 0:00:02]} axb3 {[%emt 0:00:
02]} 26. axb3 {[%emt 0:00:01]} Kb7 {[%emt 0:00:13]} 27. Kf2 {[%emt 0:00:05]}
Be6 {[%emt 0:00:20]} 28. Be3 {[%emt 0:00:06]} c5 {[%emt 0:00:06]} 29. c4 {
[%emt 0:00:28]} Ra3 {[%emt 0:00:09]} 30. Rb1 {[%emt 0:00:06]} Kc6 {[%emt 0:00:
07]} 31. Rb2 {[%emt 0:00:02]} g6 {[%emt 0:00:06]} 32. Ke2 {[%emt 0:00:03]} Ra1
{[%emt 0:00:11]} 33. Bf2 {[%emt 0:00:05]} Ra5 {[%emt 0:00:22]} 34. Be3 {
[%emt 0:00:05]} Ra8 {[%emt 0:00:13]} 35. Rd2 {[%emt 0:00:08]} Ra3 {[%emt 0:00:
06]} 36. Rb2 {[%emt 0:00:01]} Kb7 {[%emt 0:00:13]} 37. Bf2 {[%emt 0:00:06]} Ka6
{[%emt 0:00:03]} 38. Be3 {[%emt 0:00:04]} Kb7 {[%emt 0:00:05]} 39. Bf2 {
[%emt 0:00:02]} Kc6 {[%emt 0:00:01]} 40. Be3 {[%emt 0:00:02]} Ra8 {[%emt 0:00:
04]} 41. Bf2 {[%emt 0:00:02]} Rb8 {[%emt 0:00:01]} 42. Rc2 {[%emt 0:00:03]} Ra8
{[%emt 0:00:06]} 43. Be3 {[%emt 0:00:03]} Ra3 {[%emt 0:00:01]} 44. Rb2 {
[%emt 0:00:01]} b5 {[%emt 0:00:01]} 45. cxb5+ {[%emt 0:00:02]} Kxb5 {[%emt 0:
00:01]} 46. Rc2 {[%emt 0:00:02]} c4 {[%emt 0:00:01]} 47. bxc4+ {[%emt 0:00:03]}
Bxc4+ {[%emt 0:00:01]} 48. Kf2 {[%emt 0:00:09]} c5 {[%emt 0:00:02]} 49. Rc1 {
[%emt 0:00:03]} Ra4 {[%emt 0:00:09]} 50. Rc2 {[%emt 0:00:02]} Kc6 {[%emt 0:00:
03]} 51. Rd2 {[%emt 0:00:05]} Be6 {[%emt 0:00:03]} 52. Rd6+ {[%emt 0:00:02]}
0-1